[Event "*** Titled Tuesday Blitz"]
[Site "Chess.com"]
[Date "2019.08.06"]
[Round "2"]
[White "chessdjw"]
[Black "Polish_fighter3000"]
[Result "0-1"]
[WhiteElo "2655"]
[BlackElo "2976"]
[TimeControl "180+2"]
[EndTime "13:22:10 PDT"]
[Termination "Polish_fighter3000 won by checkmate"]

1. d4 {[%clk 0:03:01.9]} 1... Nf6 {[%clk 0:02:59.2]} 2. c4 {[%clk 0:03:02.4]}
2... d6 {[%clk 0:02:58.5]} 3. Nc3 {[%clk 0:03:01.8]} 3... e5 {[%clk 0:02:48.7]}
4. Nf3 {[%clk 0:03:01]} 4... Nbd7 {[%clk 0:02:41]} 5. e4 {[%clk 0:03:01.2]} 5...
Be7 {[%clk 0:02:38.1]} 6. Be2 {[%clk 0:03:02]} 6... O-O {[%clk 0:02:33.6]} 7.
O-O {[%clk 0:03:03.3]} 7... c6 {[%clk 0:02:34.8]} 8. Qc2 {[%clk 0:03:04.2]} 8...
Re8 {[%clk 0:02:36]} 9. Rd1 {[%clk 0:03:01.1]} 9... Bf8 {[%clk 0:02:36.8]} 10.
Be3 {[%clk 0:03:00.9]} 10... Qc7 {[%clk 0:02:37.4]} 11. Rac1 {[%clk 0:03:01.2]}
11... a5 {[%clk 0:02:36.1]} 12. h3 {[%clk 0:03:00.7]} 12... h6 {[%clk
0:02:36.7]} 13. b3 {[%clk 0:02:59.7]} 13... exd4 {[%clk 0:02:25.2]} 14. Nxd4
{[%clk 0:02:37.1]} 14... Nc5 {[%clk 0:02:26.2]} 15. Bf3 {[%clk 0:02:28.7]} 15...
Nh7 {[%clk 0:02:25.6]} 16. h4 {[%clk 0:02:24.2]} 16... Nf6 {[%clk 0:02:15.4]}
17. Bf4 {[%clk 0:02:22.6]} 17... Nfd7 {[%clk 0:01:48.7]} 18. Bg4 {[%clk
0:02:05.3]} 18... g6 {[%clk 0:01:13.1]} 19. h5 {[%clk 0:01:52.8]} 19... Ne5
{[%clk 0:01:09.5]} 20. Bxc8 {[%clk 0:01:52.6]} 20... Qxc8 {[%clk 0:01:10.5]} 21.
hxg6 {[%clk 0:01:52.4]} 21... fxg6 {[%clk 0:01:12.4]} 22. f3 {[%clk 0:01:42.4]}
22... Bg7 {[%clk 0:01:07.9]} 23. Rd2 {[%clk 0:01:10.8]} 23... Rf8 {[%clk
0:01:05.9]} 24. Bg3 {[%clk 0:01:09.1]} 24... Qd8 {[%clk 0:00:50.4]} 25. Nde2
{[%clk 0:00:51.2]} 25... Qe7 {[%clk 0:00:47.9]} 26. Rcd1 {[%clk 0:00:52.1]}
26... Rad8 {[%clk 0:00:49.4]} 27. a3 {[%clk 0:00:42.1]} 27... h5 {[%clk
0:00:49.5]} 28. Bh2 {[%clk 0:00:36.7]} 28... Bh6 {[%clk 0:00:45.6]} 29. f4
{[%clk 0:00:35.7]} 29... Ng4 {[%clk 0:00:42.9]} 30. e5 {[%clk 0:00:35.4]} 30...
Kh7 {[%clk 0:00:25.6]} 31. Rxd6 {[%clk 0:00:34.9]} 31... Rxd6 {[%clk 0:00:26.8]}
32. Rxd6 {[%clk 0:00:36.8]} 32... Nxe5 {[%clk 0:00:28.4]} 33. fxe5 {[%clk
0:00:30.5]} 33... Be3+ {[%clk 0:00:28.7]} 34. Kh1 {[%clk 0:00:32]} 34... Rf1+
{[%clk 0:00:30.3]} 35. Ng1 {[%clk 0:00:33.2]} 35... Rxg1+ {[%clk 0:00:30.4]} 36.
Bxg1 {[%clk 0:00:32.3]} 36... Qh4+ {[%clk 0:00:31.9]} 37. Bh2 {[%clk 0:00:33.6]}
37... Qe1+ {[%clk 0:00:33.5]} 38. Bg1 {[%clk 0:00:35.1]} 38... Qxg1# {[%clk
0:00:35]} 0-1

[Event "*** Titled Tuesday Blitz"]
[Site "Chess.com"]
[Date "2019.08.06"]
[Round "2"]
[White "area_5"]
[Black "Rhemmy"]
[Result "1-0"]
[WhiteElo "2584"]
[BlackElo "2505"]
[TimeControl "180+2"]
[EndTime "13:22:15 PDT"]
[Termination "area_5 won by resignation"]

1. e4 {[%clk 0:03:01.9]} 1... e5 {[%clk 0:03:00.8]} 2. Nf3 {[%clk 0:03:01.4]}
2... Nc6 {[%clk 0:03:02.3]} 3. Bc4 {[%clk 0:03:02.3]} 3... Nf6 {[%clk
0:03:02.7]} 4. Ng5 {[%clk 0:03:02.4]} 4... d5 {[%clk 0:03:03.4]} 5. exd5 {[%clk
0:03:03]} 5... Na5 {[%clk 0:03:04.9]} 6. Bb5+ {[%clk 0:03:03.6]} 6... c6 {[%clk
0:03:06.5]} 7. dxc6 {[%clk 0:03:04.8]} 7... bxc6 {[%clk 0:03:08.4]} 8. Bd3
{[%clk 0:03:05.4]} 8... Nd5 {[%clk 0:03:08.3]} 9. h4 {[%clk 0:03:05.6]} 9... Nf4
{[%clk 0:02:41.4]} 10. Bf1 {[%clk 0:03:05]} 10... h6 {[%clk 0:02:40.1]} 11. Nf3
{[%clk 0:03:04.6]} 11... Bd6 {[%clk 0:02:35.4]} 12. d4 {[%clk 0:03:04.8]} 12...
Bg4 {[%clk 0:02:28.7]} 13. dxe5 {[%clk 0:02:38.4]} 13... Bxe5 {[%clk 0:02:29.5]}
14. Qxd8+ {[%clk 0:02:34.7]} 14... Rxd8 {[%clk 0:02:30]} 15. Nbd2 {[%clk
0:02:35]} 15... Bc7 {[%clk 0:02:05.4]} 16. g3 {[%clk 0:02:19.6]} 16... Nd5
{[%clk 0:01:50.2]} 17. c3 {[%clk 0:02:12.7]} 17... O-O {[%clk 0:01:48.6]} 18.
Bh3 {[%clk 0:02:12.5]} 18... Rfe8+ {[%clk 0:01:47.6]} 19. Kf1 {[%clk 0:02:12.2]}
19... Nf6 {[%clk 0:01:39.9]} 20. Bxg4 {[%clk 0:02:06.1]} 20... Nxg4 {[%clk
0:01:41.8]} 21. Nh2 {[%clk 0:02:06.5]} 21... Ne5 {[%clk 0:01:37.9]} 22. b4
{[%clk 0:01:43]} 22... Nd3 {[%clk 0:01:28.1]} 23. Nhf3 {[%clk 0:01:39]} 23...
Nb7 {[%clk 0:01:20.4]} 24. Nc4 {[%clk 0:01:34.9]} 24... Nxc1 {[%clk 0:01:13.7]}
25. Rxc1 {[%clk 0:01:34.1]} 25... Rd3 {[%clk 0:00:55.8]} 26. Kg2 {[%clk
0:01:28.4]} 26... c5 {[%clk 0:00:25.5]} 27. Rhd1 {[%clk 0:01:25.8]} 27... Red8
{[%clk 0:00:21.8]} 28. Rxd3 {[%clk 0:01:25.5]} 28... Rxd3 {[%clk 0:00:23.7]} 29.
b5 {[%clk 0:01:20.4]} 29... Na5 {[%clk 0:00:18.6]} 30. Nfd2 {[%clk 0:01:12.2]}
30... Rd8 {[%clk 0:00:15.3]} 31. Nxa5 {[%clk 0:01:12]} 31... Bxa5 {[%clk
0:00:16.2]} 32. Nc4 {[%clk 0:01:13.2]} 32... Bc7 {[%clk 0:00:17.8]} 33. a4
{[%clk 0:01:14.1]} 33... Re8 {[%clk 0:00:15.3]} 34. Kf3 {[%clk 0:01:13.6]} 34...
Rd8 {[%clk 0:00:15.1]} 35. a5 {[%clk 0:01:12.8]} 35... Rb8 {[%clk 0:00:15.2]}
36. Rb1 {[%clk 0:01:13.2]} 36... f5 {[%clk 0:00:16.9]} 37. b6 {[%clk 0:01:14]}
37... axb6 {[%clk 0:00:18.4]} 38. axb6 {[%clk 0:01:15.1]} 38... Bd8 {[%clk
0:00:20.1]} 39. Kf4 {[%clk 0:01:14.9]} 39... g6 {[%clk 0:00:20.9]} 40. Ke5
{[%clk 0:01:15.3]} 40... Kf7 {[%clk 0:00:20.2]} 41. Kd6 {[%clk 0:01:15.9]} 41...
f4 {[%clk 0:00:11.1]} 42. b7 {[%clk 0:01:14.1]} 42... fxg3 {[%clk 0:00:10.9]}
43. fxg3 {[%clk 0:01:15.1]} 43... g5 {[%clk 0:00:11.3]} 44. Ne5+ {[%clk
0:01:14.2]} 44... Ke8 {[%clk 0:00:09.3]} 45. Nc6 {[%clk 0:01:15.1]} 1-0

[Event "*** Titled Tuesday Blitz"]
[Site "Chess.com"]
[Date "2019.08.06"]
[Round "2"]
[White "promen1999"]
[Black "Zubrrr"]
[Result "1-0"]
[WhiteElo "2733"]
[BlackElo "2719"]
[TimeControl "180+2"]
[EndTime "13:22:21 PDT"]
[Termination "promen1999 won by checkmate"]

1. Nf3 {[%clk 0:03:01.9]} 1... d6 {[%clk 0:02:57.8]} 2. e4 {[%clk 0:03:01.7]}
2... c5 {[%clk 0:02:58.6]} 3. Nc3 {[%clk 0:03:00.5]} 3... Nf6 {[%clk 0:02:59.4]}
4. h3 {[%clk 0:03:01.5]} 4... a6 {[%clk 0:02:49.9]} 5. g4 {[%clk 0:03:01.2]}
5... b5 {[%clk 0:02:48.1]} 6. Bg2 {[%clk 0:03:01.7]} 6... Bb7 {[%clk 0:02:47.6]}
7. d3 {[%clk 0:03:02.2]} 7... g6 {[%clk 0:02:44.8]} 8. O-O {[%clk 0:03:02.2]}
8... Bg7 {[%clk 0:02:44.5]} 9. Be3 {[%clk 0:02:58.4]} 9... Nbd7 {[%clk
0:02:24.1]} 10. Qd2 {[%clk 0:02:58.2]} 10... Nb6 {[%clk 0:02:13.8]} 11. Bh6
{[%clk 0:02:52.6]} 11... O-O {[%clk 0:02:12.7]} 12. Nh4 {[%clk 0:02:48.7]} 12...
e5 {[%clk 0:01:24.7]} 13. Bg5 {[%clk 0:02:01.2]} 13... Nbd7 {[%clk 0:00:57.5]}
14. Ne2 {[%clk 0:01:43.8]} 14... Qb6 {[%clk 0:00:31]} 15. Ng3 {[%clk 0:01:39.3]}
15... d5 {[%clk 0:00:30.7]} 16. Kh1 {[%clk 0:01:18.3]} 16... Rfe8 {[%clk
0:00:15.8]} 17. Rae1 {[%clk 0:01:13.5]} 17... dxe4 {[%clk 0:00:10.7]} 18. dxe4
{[%clk 0:01:13]} 18... Nf8 {[%clk 0:00:11.5]} 19. f4 {[%clk 0:01:09.8]} 19...
Rad8 {[%clk 0:00:12.5]} 20. Qf2 {[%clk 0:00:51.5]} 20... h6 {[%clk 0:00:13.6]}
21. fxe5 {[%clk 0:00:23.7]} 21... hxg5 {[%clk 0:00:14.1]} 22. exf6 {[%clk
0:00:25.1]} 22... Bh8 {[%clk 0:00:12.9]} 23. Nf3 {[%clk 0:00:13.9]} 23... Bxf6
{[%clk 0:00:13.1]} 24. e5 {[%clk 0:00:13.7]} 24... Be7 {[%clk 0:00:12.3]} 25.
Nxg5 {[%clk 0:00:13.5]} 25... Bxg2+ {[%clk 0:00:12.6]} 26. Kxg2 {[%clk
0:00:15.3]} 26... Bxg5 {[%clk 0:00:13.1]} 27. Qxf7+ {[%clk 0:00:16.6]} 27... Kh8
{[%clk 0:00:14.7]} 28. Ne4 {[%clk 0:00:17.8]} 28... Qc6 {[%clk 0:00:12.9]} 29.
Kg1 {[%clk 0:00:17.3]} 29... Bh4 {[%clk 0:00:12.5]} 30. Nf6 {[%clk 0:00:14.1]}
30... Bxf6 {[%clk 0:00:11.2]} 31. exf6 {[%clk 0:00:14.2]} 31... Rxe1 {[%clk
0:00:09.4]} 32. Qg7# {[%clk 0:00:14.7]} 1-0

[Event "*** Titled Tuesday Blitz"]
[Site "Chess.com"]
[Date "2019.08.06"]
[Round "2"]
[White "ChessFunMaker"]
[Black "bluejay1897"]
[Result "1-0"]
[WhiteElo "2230"]
[BlackElo "2287"]
[TimeControl "180+2"]
[EndTime "13:22:23 PDT"]
[Termination "ChessFunMaker won by resignation"]

1. c4 {[%clk 0:02:59]} 1... Nf6 {[%clk 0:02:59.9]} 2. g3 {[%clk 0:03:00.1]} 2...
e6 {[%clk 0:02:57.1]} 3. Bg2 {[%clk 0:03:00.7]} 3... d5 {[%clk 0:02:58.1]} 4. d4
{[%clk 0:03:02.3]} 4... Be7 {[%clk 0:02:54.4]} 5. Nf3 {[%clk 0:03:03.6]} 5...
O-O {[%clk 0:02:51.9]} 6. O-O {[%clk 0:03:05.1]} 6... Nbd7 {[%clk 0:02:44.6]} 7.
Nbd2 {[%clk 0:03:01.2]} 7... c5 {[%clk 0:02:42.2]} 8. cxd5 {[%clk 0:02:52.1]}
8... Nxd5 {[%clk 0:02:41.4]} 9. dxc5 {[%clk 0:02:32.1]} 9... Nxc5 {[%clk
0:02:40.6]} 10. Nb3 {[%clk 0:02:26]} 10... Nxb3 {[%clk 0:02:18.7]} 11. Qxb3
{[%clk 0:02:25.6]} 11... Bf6 {[%clk 0:02:20.2]} 12. e4 {[%clk 0:02:23.8]} 12...
Nb6 {[%clk 0:02:18.4]} 13. Be3 {[%clk 0:02:20.5]} 13... Nd7 {[%clk 0:02:13.3]}
14. Rfd1 {[%clk 0:02:18.1]} 14... Qa5 {[%clk 0:02:08.1]} 15. Rac1 {[%clk
0:02:06.8]} 15... Ne5 {[%clk 0:01:44.7]} 16. Nxe5 {[%clk 0:01:49.5]} 16... Qxe5
{[%clk 0:01:45.2]} 17. Bd4 {[%clk 0:01:34]} 17... Qg5 {[%clk 0:01:42.3]} 18. f4
{[%clk 0:00:50.7]} 18... Qg6 {[%clk 0:01:42.2]} 19. e5 {[%clk 0:00:52.3]} 19...
Be7 {[%clk 0:01:42.5]} 20. Qe3 {[%clk 0:00:20.5]} 20... a6 {[%clk 0:01:38.7]}
21. Bb6 {[%clk 0:00:20.5]} 21... f6 {[%clk 0:01:30.6]} 22. exf6 {[%clk
0:00:17.6]} 22... Bxf6 {[%clk 0:01:28.2]} 23. Be4 {[%clk 0:00:18.4]} 23... Qh5
{[%clk 0:01:28.1]} 24. Bc5 {[%clk 0:00:15.9]} 24... Re8 {[%clk 0:01:26.9]} 25.
Bf3 {[%clk 0:00:13.7]} 25... Qf7 {[%clk 0:01:21.3]} 26. Bd4 {[%clk 0:00:13.9]}
26... Rb8 {[%clk 0:01:13.4]} 27. Be5 {[%clk 0:00:14.6]} 27... Bxe5 {[%clk
0:01:13.7]} 28. Qxe5 {[%clk 0:00:16.1]} 28... Ra8 {[%clk 0:01:11.9]} 29. Rc7
{[%clk 0:00:17.1]} 29... Qf6 {[%clk 0:01:10.9]} 30. Bh5 {[%clk 0:00:05.1]} 30...
Rf8 {[%clk 0:01:00.6]} 31. Qxf6 {[%clk 0:00:06.3]} 31... gxf6 {[%clk 0:01:01.5]}
32. Bf3 {[%clk 0:00:07.4]} 32... Rb8 {[%clk 0:01:00.9]} 33. Rd6 {[%clk
0:00:07.3]} 33... e5 {[%clk 0:01:01.2]} 34. Bd5+ {[%clk 0:00:07.3]} 34... Kh8
{[%clk 0:01:02]} 35. fxe5 {[%clk 0:00:07.6]} 35... fxe5 {[%clk 0:01:03]} 36. Be6
{[%clk 0:00:07.4]} 36... Bxe6 {[%clk 0:00:54.8]} 37. Rxe6 {[%clk 0:00:08.8]}
37... Rbd8 {[%clk 0:00:55.1]} 38. Ree7 {[%clk 0:00:09.9]} 38... Rd1+ {[%clk
0:00:55.2]} 39. Kg2 {[%clk 0:00:10.6]} 39... Rd2+ {[%clk 0:00:56.5]} 40. Kh3
{[%clk 0:00:11.9]} 40... Rff2 {[%clk 0:00:57.5]} 41. Rc8+ {[%clk 0:00:11.9]} 1-0

[Event "*** Titled Tuesday Blitz"]
[Site "Chess.com"]
[Date "2019.08.06"]
[Round "2"]
[White "capatl"]
[Black "WarlordX"]
[Result "1-0"]
[WhiteElo "2540"]
[BlackElo "2521"]
[TimeControl "180+2"]
[EndTime "13:22:26 PDT"]
[Termination "capatl won by resignation"]

1. c4 {[%clk 0:02:58.5]} 1... Nf6 {[%clk 0:03:00.7]} 2. Nc3 {[%clk 0:02:56.8]}
2... e5 {[%clk 0:03:00.6]} 3. g3 {[%clk 0:02:56.8]} 3... g6 {[%clk 0:03:00]} 4.
Bg2 {[%clk 0:02:57.7]} 4... Bg7 {[%clk 0:03:01.7]} 5. e3 {[%clk 0:02:59]} 5...
O-O {[%clk 0:03:02.9]} 6. Nge2 {[%clk 0:03:00.2]} 6... d6 {[%clk 0:03:03.2]} 7.
b3 {[%clk 0:02:45.7]} 7... c6 {[%clk 0:03:01.5]} 8. d4 {[%clk 0:02:42.3]} 8...
Qc7 {[%clk 0:03:00.8]} 9. Bb2 {[%clk 0:02:37.8]} 9... Re8 {[%clk 0:03:00.4]} 10.
dxe5 {[%clk 0:02:18]} 10... dxe5 {[%clk 0:03:01]} 11. Qc2 {[%clk 0:01:59]} 11...
Bf5 {[%clk 0:03:01]} 12. e4 {[%clk 0:01:46.8]} 12... Be6 {[%clk 0:02:59.5]} 13.
O-O {[%clk 0:01:36.7]} 13... a5 {[%clk 0:02:59.7]} 14. Na4 {[%clk 0:01:34.1]}
14... Na6 {[%clk 0:02:59.1]} 15. a3 {[%clk 0:01:21.3]} 15... Nd7 {[%clk
0:02:48.8]} 16. f4 {[%clk 0:01:12.7]} 16... f6 {[%clk 0:02:49.2]} 17. f5 {[%clk
0:01:09.9]} 17... Bf7 {[%clk 0:02:49.9]} 18. fxg6 {[%clk 0:01:06.9]} 18... hxg6
{[%clk 0:02:44.4]} 19. c5 {[%clk 0:01:04.7]} 19... Bf8 {[%clk 0:02:29.5]} 20.
Bh3 {[%clk 0:00:56.8]} 20... Naxc5 {[%clk 0:01:59.3]} 21. Nxc5 {[%clk
0:00:52.2]} 21... Bxc5+ {[%clk 0:02:01.2]} 22. Kg2 {[%clk 0:00:50.4]} 22... Be7
{[%clk 0:02:02.7]} 23. Rad1 {[%clk 0:00:47.6]} 23... Rad8 {[%clk 0:02:02]} 24.
Qc3 {[%clk 0:00:46.8]} 24... Nc5 {[%clk 0:01:56.6]} 25. Qe3 {[%clk 0:00:41.1]}
25... Rxd1 {[%clk 0:01:49.4]} 26. Rxd1 {[%clk 0:00:41.2]} 26... Bxb3 {[%clk
0:01:49.8]} 27. Rc1 {[%clk 0:00:42.3]} 27... Qb6 {[%clk 0:01:18.3]} 28. a4
{[%clk 0:00:39.2]} 28... Nxa4 {[%clk 0:01:05.6]} 29. Qh6 {[%clk 0:00:35.3]}
29... Bf7 {[%clk 0:00:22.8]} 30. Be6 {[%clk 0:00:35.8]} 30... Bxe6 {[%clk
0:00:19]} 31. Qxg6+ {[%clk 0:00:37]} 31... Kh8 {[%clk 0:00:20.6]} 32. Qxe8+
{[%clk 0:00:37.2]} 32... Kg7 {[%clk 0:00:20.2]} 33. Qxe7+ {[%clk 0:00:38.3]}
33... Kg6 {[%clk 0:00:21.6]} 34. Qxe6 {[%clk 0:00:38.6]} 34... Qxb2 {[%clk
0:00:23.1]} 35. Qf5+ {[%clk 0:00:39.8]} 35... Kf7 {[%clk 0:00:24]} 36. Qf2
{[%clk 0:00:41.3]} 36... Nc3 {[%clk 0:00:22.7]} 37. Rxc3 {[%clk 0:00:42.3]}
37... a4 {[%clk 0:00:23.2]} 38. Rf3 {[%clk 0:00:43.2]} 38... Ke7 {[%clk
0:00:22.1]} 39. Qc5+ {[%clk 0:00:42.8]} 39... Ke6 {[%clk 0:00:22.1]} 40. Qc4+
{[%clk 0:00:43.5]} 40... Ke7 {[%clk 0:00:23.3]} 41. Qc5+ {[%clk 0:00:38.3]}
41... Ke6 {[%clk 0:00:24.3]} 42. Rf2 {[%clk 0:00:39.5]} 42... a3 {[%clk
0:00:24.6]} 43. Nf4+ {[%clk 0:00:38.5]} 43... exf4 {[%clk 0:00:26]} 44. Rxb2
{[%clk 0:00:39.4]} 44... axb2 {[%clk 0:00:27.9]} 45. Qc4+ {[%clk 0:00:40.4]} 1-0

[Event "*** Titled Tuesday Blitz"]
[Site "Chess.com"]
[Date "2019.08.06"]
[Round "2"]
[White "Jahonas"]
[Black "PotapovaM"]
[Result "1-0"]
[WhiteElo "2370"]
[BlackElo "2489"]
[TimeControl "180+2"]
[EndTime "13:22:31 PDT"]
[Termination "Jahonas won by checkmate"]

1. d4 {[%clk 0:03:01.9]} 1... Nf6 {[%clk 0:03:00.1]} 2. Nf3 {[%clk 0:03:03.1]}
2... e6 {[%clk 0:03:00.5]} 3. c4 {[%clk 0:03:04.5]} 3... d5 {[%clk 0:03:00.2]}
4. g3 {[%clk 0:03:05.6]} 4... Bb4+ {[%clk 0:02:52.7]} 5. Bd2 {[%clk 0:03:06.2]}
5... Bd6 {[%clk 0:02:53.6]} 6. Bg2 {[%clk 0:03:04.5]} 6... O-O {[%clk
0:02:52.6]} 7. Qc2 {[%clk 0:03:01.8]} 7... c6 {[%clk 0:02:53.1]} 8. O-O {[%clk
0:03:02.6]} 8... Nbd7 {[%clk 0:02:52.7]} 9. a3 {[%clk 0:03:01.3]} 9... Ne4
{[%clk 0:02:47.6]} 10. Bb4 {[%clk 0:03:01]} 10... Qe7 {[%clk 0:02:40.8]} 11.
Bxd6 {[%clk 0:02:58.1]} 11... Qxd6 {[%clk 0:02:42.7]} 12. Nc3 {[%clk 0:02:57.8]}
12... f5 {[%clk 0:02:42.2]} 13. b4 {[%clk 0:02:56.5]} 13... a5 {[%clk 0:02:18]}
14. b5 {[%clk 0:02:46.3]} 14... Nxc3 {[%clk 0:01:33.2]} 15. Qxc3 {[%clk
0:02:48.2]} 15... cxb5 {[%clk 0:01:07.1]} 16. c5 {[%clk 0:02:47.5]} 16... Qc7
{[%clk 0:00:52.3]} 17. Rfc1 {[%clk 0:02:35]} 17... Nb8 {[%clk 0:00:43.8]} 18.
Ne5 {[%clk 0:02:34.4]} 18... Bd7 {[%clk 0:00:45.1]} 19. e3 {[%clk 0:02:30.6]}
19... Nc6 {[%clk 0:00:43.2]} 20. Nd3 {[%clk 0:02:20.6]} 20... Ra7 {[%clk
0:00:36.3]} 21. Rab1 {[%clk 0:02:05.6]} 21... Rfa8 {[%clk 0:00:37.5]} 22. h4
{[%clk 0:01:54]} 22... Ne7 {[%clk 0:00:36]} 23. Nf4 {[%clk 0:01:51.9]} 23... Kh8
{[%clk 0:00:32.3]} 24. Bf1 {[%clk 0:01:51.9]} 24... b4 {[%clk 0:00:21.6]} 25.
axb4 {[%clk 0:01:51.8]} 25... axb4 {[%clk 0:00:21.1]} 26. Qxb4 {[%clk
0:01:51.3]} 26... Nc6 {[%clk 0:00:20.4]} 27. Qb6 {[%clk 0:01:50.9]} 27... Qxb6
{[%clk 0:00:18.5]} 28. cxb6 {[%clk 0:01:51]} 28... Ra2 {[%clk 0:00:18.9]} 29.
Bb5 {[%clk 0:01:50.9]} 29... Kg8 {[%clk 0:00:11.5]} 30. Bxc6 {[%clk 0:01:51.7]}
30... bxc6 {[%clk 0:00:12.9]} 31. b7 {[%clk 0:01:46.7]} 31... Rb8 {[%clk
0:00:13.6]} 32. Nd3 {[%clk 0:01:40.7]} 32... Kf7 {[%clk 0:00:15.2]} 33. Nc5
{[%clk 0:01:38.7]} 33... Ke7 {[%clk 0:00:15.7]} 34. Ra1 {[%clk 0:01:38.7]} 34...
Rb2 {[%clk 0:00:13.6]} 35. Rcb1 {[%clk 0:01:26.4]} 35... Rxb1+ {[%clk 0:00:13]}
36. Rxb1 {[%clk 0:01:27.6]} 36... Kd6 {[%clk 0:00:13.7]} 37. Kg2 {[%clk
0:01:14.5]} 37... e5 {[%clk 0:00:13.4]} 38. Ra1 {[%clk 0:01:06.7]} 38... exd4
{[%clk 0:00:14.1]} 39. exd4 {[%clk 0:01:07.3]} 39... Kc7 {[%clk 0:00:14.1]} 40.
Kf3 {[%clk 0:01:05.5]} 40... Kb6 {[%clk 0:00:12.3]} 41. Kf4 {[%clk 0:01:02.6]}
41... Be8 {[%clk 0:00:13.1]} 42. Ke5 {[%clk 0:01:03]} 42... g6 {[%clk
0:00:11.9]} 43. Kd6 {[%clk 0:01:02.8]} 43... Rd8+ {[%clk 0:00:12.5]} 44. Ke7
{[%clk 0:01:03.8]} 44... Rb8 {[%clk 0:00:14.3]} 45. Ra8 {[%clk 0:01:03.7]} 45...
Kc7 {[%clk 0:00:15.4]} 46. Rxb8 {[%clk 0:01:04.2]} 46... Kxb8 {[%clk 0:00:16.1]}
47. Kxe8 {[%clk 0:01:05.5]} 47... Kc7 {[%clk 0:00:18]} 48. Ke7 {[%clk
0:01:06.2]} 48... Kb8 {[%clk 0:00:19.9]} 49. Kd6 {[%clk 0:01:06.1]} 49... Ka7
{[%clk 0:00:21.1]} 50. Kc7 {[%clk 0:01:05.9]} 50... g5 {[%clk 0:00:23]} 51.
b8=Q# {[%clk 0:01:07]} 1-0

[Event "*** Titled Tuesday Blitz"]
[Site "Chess.com"]
[Date "2019.08.06"]
[Round "2"]
[White "KazakhFighter04"]
[Black "RegZryt"]
[Result "1-0"]
[WhiteElo "2732"]
[BlackElo "2584"]
[TimeControl "180+2"]
[EndTime "13:22:37 PDT"]
[Termination "KazakhFighter04 won by resignation"]

1. e4 {[%clk 0:03:01.9]} 1... c5 {[%clk 0:02:59.5]} 2. Nf3 {[%clk 0:03:03.1]}
2... e6 {[%clk 0:03:00.6]} 3. d4 {[%clk 0:03:04.3]} 3... cxd4 {[%clk 0:03:02.5]}
4. Nxd4 {[%clk 0:03:05.6]} 4... Nf6 {[%clk 0:03:04.4]} 5. Nc3 {[%clk 0:03:01]}
5... Nc6 {[%clk 0:03:05.8]} 6. f3 {[%clk 0:02:54.4]} 6... Bb4 {[%clk 0:03:04.9]}
7. Nb5 {[%clk 0:02:49.2]} 7... d5 {[%clk 0:03:04.7]} 8. exd5 {[%clk 0:02:47.6]}
8... Nxd5 {[%clk 0:03:05.3]} 9. a3 {[%clk 0:02:48.4]} 9... Bxc3+ {[%clk
0:03:06.1]} 10. Nxc3 {[%clk 0:02:49.1]} 10... Nxc3 {[%clk 0:03:06.5]} 11. Qxd8+
{[%clk 0:02:51]} 11... Nxd8 {[%clk 0:03:05.2]} 12. bxc3 {[%clk 0:02:52.9]} 12...
Bd7 {[%clk 0:02:56.8]} 13. a4 {[%clk 0:02:49.6]} 13... Rc8 {[%clk 0:02:55.3]}
14. c4 {[%clk 0:02:46.3]} 14... Nc6 {[%clk 0:02:45.1]} 15. Be3 {[%clk
0:02:44.7]} 15... a6 {[%clk 0:02:43.3]} 16. a5 {[%clk 0:02:41.6]} 16... Ne5
{[%clk 0:02:30.9]} 17. Bd4 {[%clk 0:02:36.7]} 17... Nxc4 {[%clk 0:02:17.6]} 18.
Bxg7 {[%clk 0:02:37.4]} 18... Rg8 {[%clk 0:02:19.2]} 19. Bd4 {[%clk 0:02:39]}
19... Rg5 {[%clk 0:02:14.3]} 20. Kf2 {[%clk 0:02:18.1]} 20... Rxa5 {[%clk
0:02:00.6]} 21. Rxa5 {[%clk 0:02:01.5]} 21... Nxa5 {[%clk 0:02:02.5]} 22. Bd3
{[%clk 0:02:03.4]} 22... Nc6 {[%clk 0:01:33.5]} 23. Bf6 {[%clk 0:02:01.4]} 23...
h5 {[%clk 0:01:12.9]} 24. Rb1 {[%clk 0:01:55.9]} 24... b5 {[%clk 0:01:13]} 25.
h4 {[%clk 0:01:55.5]} 25... Ne7 {[%clk 0:01:00.2]} 26. g4 {[%clk 0:01:56.1]}
26... Nd5 {[%clk 0:00:53.3]} 27. Bg7 {[%clk 0:01:44.3]} 27... Nf4 {[%clk
0:00:53.3]} 28. gxh5 {[%clk 0:01:37.6]} 28... Nxh5 {[%clk 0:00:53.6]} 29. Be5
{[%clk 0:01:37.4]} 29... f6 {[%clk 0:00:29.8]} 30. Bd6 {[%clk 0:01:35.6]} 30...
Kf7 {[%clk 0:00:30.2]} 31. Rg1 {[%clk 0:01:35.1]} 31... f5 {[%clk 0:00:28.6]}
32. Rg5 {[%clk 0:01:33.5]} 32... Nf6 {[%clk 0:00:29.3]} 33. Be5 {[%clk
0:01:30.5]} 33... a5 {[%clk 0:00:28.9]} 34. h5 {[%clk 0:01:30.2]} 34... a4
{[%clk 0:00:28]} 35. h6 {[%clk 0:01:31.1]} 35... Rg8 {[%clk 0:00:07.3]} 36. Rxg8
{[%clk 0:01:14.4]} 36... Kxg8 {[%clk 0:00:05.8]} 37. Bxf6 {[%clk 0:01:15.6]}
37... Kh7 {[%clk 0:00:06.9]} 38. Bg7 {[%clk 0:01:16.4]} 38... a3 {[%clk
0:00:07.5]} 39. Ke3 {[%clk 0:01:12]} 39... a2 {[%clk 0:00:08.9]} 40. Kd2 {[%clk
0:01:10.3]} 40... Bc6 {[%clk 0:00:10.3]} 41. f4 {[%clk 0:01:10.2]} 41... a1=Q
{[%clk 0:00:08.9]} 42. Bxa1 {[%clk 0:01:10.1]} 42... Kxh6 {[%clk 0:00:10.8]} 43.
Ke3 {[%clk 0:01:10.9]} 43... Kh5 {[%clk 0:00:11.5]} 44. Be5 {[%clk 0:01:12]}
44... Kg4 {[%clk 0:00:12.8]} 45. Kd4 {[%clk 0:01:13.9]} 45... Kg3 {[%clk
0:00:14.2]} 46. Kc5 {[%clk 0:01:14.9]} 46... Be4 {[%clk 0:00:15]} 47. Kxb5
{[%clk 0:01:15.4]} 47... Kf3 {[%clk 0:00:15.3]} 48. Kc5 {[%clk 0:01:16.2]} 48...
Bxd3 {[%clk 0:00:15.7]} 49. cxd3 {[%clk 0:01:18.1]} 49... Ke3 {[%clk 0:00:17.6]}
50. Kd6 {[%clk 0:01:19.5]} 1-0